fUSD/lending_fUSD_20260202
["ID","MTS","AMOUNT","RATE_DAILY","PERIOD"]
[404305762,1770051047066,-1081.79,0.00016999,2]
[404305764,1770051047075,-1081.79,0.00016999,2]
[404305766,1770051047085,-1081.79,0.00016999,2]
[404305768,1770051047094,-1081.79,0.00016999,2]
[404305770,1770051047103,-1081.88314617,0.00016999,2]
[404305772,1770051047113,-520.18,0.00016999,2]
[404305774,1770051047123,-520.18,0.00016999,2]
[404305776,1770051047132,-520.18,0.00016999,2]
[404305778,1770051047141,-520.18,0.00016999,2]
[404305780,1770051047151,-520.24526317,0.00016999,2]
[404305782,1770051047160,-1000.0,0.00017,2]
[404305784,1770051047170,-196437.88443842,0.00017,2]
[404305814,1770051047447,-420.80600006,0.00017,2]
[404305820,1770051047492,-500.0,0.00011715,2]
[404305822,1770051047501,-500.0,0.00011715,2]
[404305824,1770051047510,-8663.75,0.00017,2]
[404305826,1770051047522,-1194.0,0.00017,2]
[404305843,1770051047670,-33583.6289303,0.00011616,2]
[404305845,1770051047679,-500.0,0.00011715,2]
[404305847,1770051047689,-500.0,0.00011715,2]
[404305849,1770051047698,-500.0,0.00011715,2]
[404305851,1770051047708,-2155.51113703,0.00014758,2]
[404305854,1770051047718,-207334.32577662,0.00017,2]
[404305856,1770051047727,-300.0,0.00017,2]
[404305858,1770051047740,-500.0,0.00017,5]
[404305859,1770051047749,-500.0,0.00017,2]
[404305860,1770051047759,-500.0,0.00017,5]
[404305861,1770051047769,-500.0,0.00017,2]
[404305862,1770051047779,-500.0,0.00017,2]
[404305863,1770051047790,-500.0,0.00017,5]
[404305865,1770051047800,-260.4103811,0.0001701,2]
[404305867,1770051047810,-300.0,0.00017021,2]
[404305869,1770051047819,-163.0,0.0001704,2]
[404305871,1770051047830,-839.0,0.0001704,2]
[404305873,1770051047839,-839.0,0.0001704,2]
[404305875,1770051047850,-2877.0,0.0001704,2]
[404305877,1770051047859,-247.0,0.00017043,2]
[404305879,1770051047869,-270.0455652,0.00017065,2]
[404305881,1770051047878,-200.0,0.0001707,2]
[404305883,1770051047888,-200.0,0.0001707,2]
[404305885,1770051047898,-200.0,0.0001707,2]
[404305887,1770051047907,-500.0,0.00017079,2]
[404305889,1770051047917,-5000.0,0.000171,2]
[404305892,1770051047927,-1000.0,0.00017112,2]
[404305894,1770051047937,-2000.0,0.00017116,2]
[404305896,1770051047946,-280.03725112,0.0001712,2]
[404305898,1770051047956,-4609.0,0.00017152,2]
[404305900,1770051047966,-290.39862941,0.00017175,2]
[404305902,1770051047975,-5000.0,0.000172,2]
[404305904,1770051047986,-150.57,0.00017224,2]
[404305906,1770051047995,-559.71,0.00017224,2]
[404305908,1770051048005,-181.08010149,0.00017228,2]
[404305910,1770051048016,-1481.23780761,0.00017228,2]
[404305912,1770051048025,-217.15233878,0.00017228,2]
[404305914,1770051048035,-265.19897578,0.00017229,2]
[404305916,1770051048045,-301.1433787,0.0001723,2]
[404305918,1770051048054,-200.0,0.00017241,2]
[404305920,1770051048064,-200.0,0.00017241,2]
[404305922,1770051048073,-200.0,0.00017241,2]
[404305924,1770051048084,-2165.35985631,0.0001726,2]
[404305926,1770051048094,-1999.0,0.0001726,2]
[404305928,1770051048103,-500.0,0.00017289,2]
[404305930,1770051048114,-200.0,0.0001729,2]
[404305932,1770051048123,-5000.0,0.000173,2]
[404305934,1770051048134,-839.0,0.0001736,2]
[404305936,1770051048143,-159.6584355,0.00017361,2]
[404305938,1770051048152,-219.544,0.00017396,2]
[404305940,1770051048163,-5000.0,0.000174,2]
[404305942,1770051048173,-7100.0,0.000174,6]
[404305944,1770051048183,-10153.0,0.00017423,2]
[404305946,1770051048193,-200.0,0.00017458,3]
[404305948,1770051048202,-13442.50995431,0.000175,2]
[404305950,1770051048211,-1400.0,0.000175,6]
[404305953,1770051048221,-224.64,0.00017502,2]
[404305955,1770051048231,-1000.0,0.00017534,2]
[404305957,1770051048242,-595.4,0.00017566,2]
[404305959,1770051048251,-595.4,0.00017566,2]
[404305961,1770051048261,-595.4,0.00017566,2]
[404305963,1770051048271,-595.4,0.00017566,2]
[404305965,1770051048283,-595.59595269,0.00017566,2]
[404305967,1770051048293,-450.0,0.00017568,2]
[404305969,1770051048302,-5888.0,0.00017587,2]
[404305971,1770051048311,-266.83,0.00017594,2]
[404305973,1770051048323,-5000.0,0.000176,2]
[404305975,1770051048332,-1400.0,0.000176,6]
[404305977,1770051048342,-224.64,0.00017608,2]
[404305979,1770051048353,-959.47407764,0.0001764,2]
[404305981,1770051048362,-1206.7590748,0.00017644,2]
[404305983,1770051048372,-2500.0,0.00017664,2]
[404305985,1770051048382,-163.0,0.0001768,2]
[404305988,1770051048392,-839.0,0.0001768,2]
[404305990,1770051048401,-150.10178686,0.00017698,2]
[404305992,1770051048410,-500.0,0.00017698,2]
[404305994,1770051048420,-150.8823375,0.00017698,2]
[404305996,1770051048429,-150.86853195,0.00017698,2]
[404305998,1770051048439,-150.28399281,0.00017698,2]
[404306000,1770051048448,-500.0,0.00017698,2]
[404306002,1770051048457,-150.0,0.00017698,2]
[404306004,1770051048467,-150.0,0.00017698,2]
[404306029,1770051048734,-150.0,0.00017698,2]
[404306032,1770051048749,-250.52896875,0.00017698,2]
[404306034,1770051048758,-500.0,0.00017698,2]
[404306036,1770051048767,-150.0,0.00017698,2]
[404306038,1770051048777,-150.0,0.00017698,2]
[404306040,1770051048786,-500.0,0.00017698,2]
[404306042,1770051048796,-480.0,0.00017698,2]
[404306044,1770051048805,-150.0,0.00017698,2]
[404306046,1770051048814,-500.0,0.00017698,2]
[404306048,1770051048824,-150.59152836,0.00017698,2]
[404306050,1770051048833,-500.0,0.00017698,2]
[404306052,1770051048842,-150.0,0.00017698,2]
[404306054,1770051048851,-500.0,0.00017698,2]
[404306056,1770051048860,-1794.0,0.00017698,2]
[404306058,1770051048869,-150.0,0.00017698,2]
[404306060,1770051048878,-500.0,0.00017698,2]
[404306062,1770051048887,-500.0,0.00017698,2]
[404306063,1770051048896,-500.0,0.00017698,2]
[404306064,1770051048907,-150.0,0.00017698,2]
[404306065,1770051048916,-150.0,0.00017698,2]
[404306066,1770051048925,-500.0,0.00017698,2]
[404306067,1770051048935,-150.0,0.00017698,2]
[404306068,1770051048945,-500.0,0.00017698,2]
[404306069,1770051048954,-500.0,0.00017698,2]
[404306070,1770051048964,-150.0,0.00017698,2]
[404306071,1770051048973,-150.0,0.00017698,2]
[404306072,1770051048983,-5000.0,0.000177,2]
[404306073,1770051048993,-1400.0,0.000177,6]
[404306074,1770051049002,-205.58,0.00017706,2]
[404306075,1770051049012,-1000.0,0.00017709,2]
[404306076,1770051049021,-224.6364064,0.00017714,2]
[404306077,1770051049031,-4479.0,0.00017732,2]
[404306078,1770051049040,-599.274,0.00017753,2]
[404306079,1770051049049,-500.0,0.00017753,2]
[404306080,1770051049059,-150.0,0.00017753,2]
[404306081,1770051049069,-155.94467862,0.00017753,2]
[404306082,1770051049078,-150.0,0.00017753,2]
[404306083,1770051049088,-500.0,0.00017753,2]
[404306084,1770051049097,-150.0,0.00017753,2]
[404306085,1770051049107,-266.13840863,0.00017753,2]
[404306086,1770051049117,-500.0,0.00017753,2]
[404306087,1770051049126,-480.0,0.00017753,2]
[404306088,1770051049136,-150.0,0.00017753,2]
[404306089,1770051049146,-500.0,0.00017753,2]
[404306090,1770051049155,-500.0,0.00017753,2]
[404306091,1770051049164,-166.03286464,0.00017753,2]
[404306092,1770051049173,-500.0,0.00017753,2]
[404306093,1770051049182,-1794.0,0.00017753,2]
[404306094,1770051049191,-150.0,0.00017753,2]
[404306095,1770051049202,-500.0,0.00017753,2]
[404306096,1770051049211,-500.0,0.00017753,2]
[404306097,1770051049220,-500.0,0.00017753,2]
[404306098,1770051049230,-150.0,0.00017753,2]
[404306099,1770051049241,-500.0,0.00017753,2]
[404306100,1770051049250,-150.0,0.00017753,2]
[404306101,1770051049260,-500.0,0.00017753,2]
[404306102,1770051049270,-500.0,0.00017753,2]
[404306103,1770051049286,-4479.0,0.00017767,2]
[404306104,1770051049295,-187.78006525,0.00017776,2]
[404306105,1770051049305,-1536.04360649,0.00017776,2]
[404306107,1770051049314,-225.18697532,0.00017776,2]
[404306108,1770051049325,-600.60690639,0.0001779,2]
[404306109,1770051049334,-5000.0,0.000178,2]
[404306111,1770051049343,-502.14782899,0.000178,3]
[404306113,1770051049354,-1400.0,0.000178,6]
[404306114,1770051049364,-200.0,0.00017802,2]
[404306115,1770051049374,-257.91969894,0.00017808,2]
[404306117,1770051049383,-150.0,0.00017808,2]
[404306119,1770051049394,-150.0,0.00017808,2]
[404306121,1770051049404,-500.0,0.00017808,2]
[404306122,1770051049413,-150.0,0.00017808,2]
[404306123,1770051049423,-500.0,0.00017808,2]
[404306124,1770051049432,-480.0,0.00017808,2]
[404306125,1770051049441,-150.0,0.00017808,2]
[404306126,1770051049451,-242.0,0.00017808,2]
[404306127,1770051049460,-500.0,0.00017808,2]
[404306128,1770051049469,-500.0,0.00017808,2]
[404306129,1770051049479,-1794.0,0.00017808,2]
[404306130,1770051049490,-254.1991344,0.00017808,2]
[404306131,1770051049499,-500.0,0.00017808,2]
[404306132,1770051049509,-500.0,0.00017808,2]
[404306133,1770051049518,-203.40923612,0.00017808,2]
[404306134,1770051049529,-150.0,0.00017808,2]
[404306135,1770051049539,-500.0,0.00017808,2]
[404306136,1770051049550,-150.0,0.00017808,2]
[404306137,1770051049560,-500.0,0.00017808,2]
[404306138,1770051049570,-500.0,0.00017808,2]
[404306139,1770051049580,-1000.0,0.00017808,2]
[404306140,1770051049589,-3764.4246687,0.0001782,10]
[404306141,1770051049598,-2000.0,0.0001782,2]
[404306142,1770051049608,-2000.0,0.0001782,2]
[404306143,1770051049617,-2000.0,0.0001782,2]
[404306144,1770051049626,-2000.0,0.0001782,2]
[404306145,1770051049636,-500.0,0.00017837,2]
[404306146,1770051049645,-200.0,0.00017856,2]
[404306147,1770051049655,-1334.0,0.00017857,2]
[404306148,1770051049664,-162.264,0.00017857,2]
[404306149,1770051049674,-728.231,0.00017857,2]
[404306150,1770051049683,-1410.0,0.00017857,2]
[404306151,1770051049692,-3514.155,0.00017857,2]
[404306152,1770051049702,-1273.693,0.00017857,2]
[404306153,1770051049711,-251.0,0.00017857,2]
[404306154,1770051049721,-6579.0,0.00017857,2]
[404306155,1770051049730,-568.0,0.00017857,2]
[404306156,1770051049742,-1327.876,0.00017857,2]
[404306157,1770051049752,-150.0,0.00017862,2]
[404306158,1770051049762,-150.0,0.00017862,2]
[404306159,1770051049771,-500.0,0.00017862,2]
[404306160,1770051049781,-282.97813088,0.00017862,2]
[404306161,1770051049790,-500.0,0.00017862,2]
[404306162,1770051049799,-480.0,0.00017862,2]
[404306163,1770051049809,-150.0,0.00017862,2]
[404306164,1770051049819,-500.0,0.00017862,2]
[404306165,1770051049829,-179.99262105,0.00017862,2]
[404306166,1770051049839,-1794.0,0.00017862,2]
[404306167,1770051049848,-500.0,0.00017862,2]
[404306168,1770051049858,-500.0,0.00017862,2]
[404306169,1770051049868,-150.0,0.00017862,2]
[404306170,1770051049877,-500.0,0.00017862,2]
[404306171,1770051049887,-500.0,0.00017862,2]
[404306172,1770051049896,-500.0,0.00017862,2]
[404306173,1770051049906,-165.62377034,0.00017869,2]
[404306174,1770051049915,-152.0,0.00017872,3]
[404306175,1770051049924,-612.0,0.00017898,2]
[404306176,1770051049933,-1017.42,0.00017899,2]
[404306177,1770051049947,-513.79,0.00017899,2]
[404306178,1770051049957,-640.79,0.00017899,2]
[404306179,1770051049967,-500.0,0.00017899,2]
[404306180,1770051049977,-617.4,0.00017899,2]
[404306181,1770051049987,-5000.0,0.000179,2]
[404306182,1770051049997,-500.0,0.000179,2]
[404306183,1770051050007,-1874.0,0.000179,6]
[404306184,1770051050016,-747.17102317,0.000179,2]
[404306185,1770051050026,-291.47561802,0.00017917,2]
[404306186,1770051050036,-289.36328116,0.00017917,2]
[404306187,1770051050046,-500.0,0.00017917,2]
[404306188,1770051050056,-500.0,0.00017917,2]
[404306189,1770051050066,-480.0,0.00017917,2]
[404306190,1770051050075,-150.0,0.00017917,2]
[404306191,1770051050085,-500.0,0.00017917,2]
[404306192,1770051050095,-1794.0,0.00017917,2]
[404306193,1770051050104,-500.0,0.00017917,2]
[404306194,1770051050114,-500.0,0.00017917,2]
[404306195,1770051050124,-150.0,0.00017917,2]
[404306196,1770051050133,-506.67636932,0.00017917,2]
[404306197,1770051050143,-500.0,0.00017917,2]
[404306198,1770051050153,-1000.0,0.00017924,2]
[404306199,1770051050163,-886.486,0.00017924,2]
[404306200,1770051050173,-2336.7736424,0.00017948,2]
[404306201,1770051050182,-190974.9023024,0.00017958,2]
[404306202,1770051050192,-93773.1563898,0.00017958,2]
[404306203,1770051050202,-932.3938627,0.00017961,2]
[404306204,1770051050212,-3945.4052295,0.00017961,2]
[404306205,1770051050222,-1017.42,0.00017963,2]
[404306206,1770051050239,-1017.42,0.00017963,2]
[404306207,1770051050249,-1017.42,0.00017963,2]
[404306208,1770051050258,-1017.42,0.00017963,2]
[404306209,1770051050268,-1017.42001855,0.00017963,2]
[404306210,1770051050280,-513.79,0.00017963,2]
[404306211,1770051050291,-513.79,0.00017963,2]
[404306212,1770051050300,-513.79,0.00017963,2]
[404306213,1770051050309,-513.79,0.00017963,2]
[404306214,1770051050318,-513.91503942,0.00017963,2]
[404306215,1770051050328,-640.79,0.00017963,2]
[404306216,1770051050338,-640.79,0.00017963,2]
[404306217,1770051050347,-640.79,0.00017963,2]
[404306218,1770051050359,-640.79,0.00017963,2]
[404306219,1770051050368,-640.9535499,0.00017963,2]
[404306220,1770051050378,-500.0,0.00017963,2]
[404306221,1770051050387,-500.0,0.00017963,2]
[404306222,1770051050397,-500.0,0.00017963,2]
[404306223,1770051050406,-440.42527963,0.00017963,2]
[404306224,1770051050415,-617.4,0.00017963,2]
[404306225,1770051050425,-617.4,0.00017963,2]
[404306226,1770051050434,-617.4,0.00017963,2]
[404306227,1770051050443,-617.4,0.00017963,2]
[404306228,1770051050454,-617.56317558,0.00017963,2]
[404306229,1770051050465,-5888.0,0.00017968,2]
[404306230,1770051050478,-500.0,0.00017972,2]
[404306231,1770051050488,-284.33132432,0.00017972,2]
[404306232,1770051050497,-480.0,0.00017972,2]
[404306233,1770051050506,-250.0,0.00017972,2]
[404306234,1770051050517,-500.0,0.00017972,2]
[404306235,1770051050529,-1794.0,0.00017972,2]
[404306236,1770051050539,-500.0,0.00017972,2]
[404306237,1770051050549,-500.0,0.00017972,2]
[404306238,1770051050560,-206.44868677,0.00017972,2]
[404306239,1770051050571,-500.0,0.00017972,2]
[404306240,1770051050580,-500.0,0.00017973,2]
[404306241,1770051050589,-6242.68596081,0.0001799,3]
[404306242,1770051050599,-1010.3175,0.00017999,2]
[404306243,1770051050608,-300.0,0.00017999,2]
[404306244,1770051050617,-300.0,0.00017999,2]
[404306245,1770051050626,-666.0,0.00017999,2]
[404306246,1770051050635,-300.0,0.00017999,2]
[404306247,1770051050645,-300.0,0.00017999,2]
[404306248,1770051050655,-300.0,0.00017999,2]
[404306249,1770051050665,-300.0,0.00017999,2]
[404306250,1770051050675,-300.0,0.00017999,2]
[404306251,1770051050686,-3462545.53044377,0.00018,2]
[404306252,1770051050702,-2912.3840037,0.00018,2]
[404306253,1770051050714,-295.365,0.00018,2]
[404306254,1770051050725,-1437668.59986324,0.00018,2]
[404306255,1770051051746,-720.419996,0.00017857,2]
[404306256,1770051051757,-1744.688004,0.00017857,2]
[404306257,1770051051767,-244.1724736,0.000179,2]
[404306258,1770051051823,-24725.11331757,0.00012116,2]
[404306259,1770051051965,-593.464955,0.00012116,2]
[404306260,1770051052023,-8265.05065768,0.00012116,2]
[404306261,1770051052034,-1911.33866343,0.000179,2]
[404306262,1770051052044,-595311.64129658,0.00018,2]
[404306263,1770051121935,1000.0,0.000116,4]
[404306264,1770051124022,2000.0,0.000117,4]
[404306265,1770051126111,3000.0,0.000118,4]
[404306266,1770051128225,4000.0,0.000119,4]
[404306267,1770051194363,1046.34229323,0.00011715,3]
[404306268,1770051194404,1046.34229323,0.00011715,3]
[404306269,1770051194435,1046.34229323,0.00011715,3]
[404306270,1770051194466,1046.34229323,0.00011715,3]
[404306271,1770051194496,1046.34229323,0.00011715,3]
[404306272,1770051194527,1046.34229321,0.00011715,3]
[404306273,1770051194563,1046.34229323,0.00011715,3]
[404306274,1770051194602,1046.34229323,0.00011715,3]
[404306275,1770051198678,10500.0,0.000115,4]
[404306276,1770051200795,21100.0,0.000116,4]
[404306277,1770051202967,31600.0,0.000117,4]
[404306278,1770051205061,36800.0,0.000118,4]
[404306279,1770051205090,5400.0,0.000118,4]
[404306280,1770051207147,52800.0,0.000119,4]
[404306281,1770051214420,5531.0,0.000134,5]
[404306282,1770051214639,5531.0,0.000132,3]
[404306283,1770051246328,5531.0,0.000134,5]
[404306284,1770051246561,5531.0,0.000132,3]
[404306285,1770051264355,1001.54923993,0.00011715,3]
[404306286,1770051264389,1001.54923993,0.00011715,3]
[404306287,1770051264446,1001.54923993,0.00011715,3]
[404306288,1770051264501,1001.54923993,0.00011715,3]
[404306289,1770051264556,1001.54923994,0.00011715,3]
[404306290,1770051278233,3571.71289667,0.000134,5]
[404306291,1770051278273,1959.28710333,0.000134,5]
[404306292,1770051278479,5531.0,0.000132,3]
[404306293,1770051293265,4900.0,0.000115,4]
[404306294,1770051295355,9800.0,0.000116,4]
[404306295,1770051295479,1043.35825644,0.00011715,3]
[404306296,1770051295513,1043.35825644,0.00011715,3]
[404306297,1770051295547,1043.35825644,0.00011715,3]
[404306298,1770051295583,1043.35825641,0.00011715,3]
[404306299,1770051295623,1043.35825644,0.00011715,3]
[404306300,1770051295657,1043.35825644,0.00011715,3]
[404306301,1770051297437,14800.0,0.000117,4]
[404306302,1770051299519,19700.0,0.000118,4]
[404306303,1770051301613,24700.0,0.000119,4]
[404306304,1770051309779,5531.0,0.000133,5]
[404306305,1770051310024,5531.0,0.000131,3]
[404306306,1770051341331,1287.56335806,0.000133,5]
[404306307,1770051341364,4243.43664194,0.000133,5]
[404306308,1770051341605,5531.0,0.000131,3]
[404306309,1770051361529,210.4,0.00013616,7]
[404306310,1770051372980,5531.0,0.000132,5]
[404306311,1770051373210,5531.0,0.00013,3]
[404306312,1770051404776,5531.0,0.000132,5]
[404306313,1770051404819,5531.0,0.00013,3]
[404306314,1770051406006,4741.35,0.00011383,2]
[404306315,1770051425268,258.66,0.00011247,2]
[404306316,1770051425289,43.66,0.00011247,2]
[404306317,1770051436414,5531.0,0.000132,5]
[404306318,1770051436642,5531.0,0.00013,3]
[404306319,1770051458385,4956.35,0.00011233,2]
[404306320,1770051458411,5000.01,0.00011233,2]
[404306321,1770051458440,3592.63,0.00011233,2]
[404306322,1770051467928,5531.0,0.000132,5]
[404306323,1770051468144,5531.0,0.00013,3]
[404306324,1770051491480,184.05,8.879e-05,2]
[404306325,1770051491910,184.05,0.00010359,2]
[404306326,1770051496656,1002.58,0.00011099,2]
[404306327,1770051500216,5531.0,0.000131,5]
[404306328,1770051500467,5531.0,0.000129,3]
[404306329,1770051532137,5531.0,0.000131,5]
[404306330,1770051532378,5531.0,0.000129,3]
[404306331,1770051563723,5531.0,0.00013,5]
[404306332,1770051563949,5531.0,0.000128,3]
[404306333,1770051595387,5531.0,0.00013,5]
[404306334,1770051595623,5531.0,0.000128,3]
[404306335,1770051616311,36.7,0.000116,2]
[404306336,1770051616333,2809.65169183,0.000116,2]
[404306337,1770051623225,1400.0,0.000115,4]
[404306338,1770051625320,2800.0,0.000116,4]
[404306339,1770051627414,5531.0,0.00013,5]
[404306340,1770051627459,4200.0,0.000117,4]
[404306341,1770051627638,5531.0,0.000128,3]
[404306342,1770051629620,5600.0,0.000118,4]
[404306343,1770051631620,7100.0,0.000119,4]
[404306344,1770051631967,171.71,0.000116,2]
[404306345,1770051652384,397.73538512,0.000116,2]
[404306346,1770051652421,151.0,0.000116,2]
[404306347,1770051652559,151.0,0.000116,2]
[404306348,1770051658969,5531.0,0.00013,5]
[404306349,1770051659196,5531.0,0.000128,3]
[404306350,1770051690550,5531.0,0.000129,5]
[404306351,1770051690756,5531.0,0.000127,3]
[404306352,1770051722700,5531.0,0.000129,5]
[404306353,1770051722940,1466.0,0.000127,3]
[404306354,1770051726901,1318.91292305,0.00011516,2]
[404306355,1770051726927,5000.01,0.00011516,2]
[404306356,1770051726952,5000.01,0.00011516,2]
[404306357,1770051726977,5000.01,0.00011516,2]
[404306358,1770051727002,5000.01,0.00011516,2]
[404306359,1770051727027,5000.01,0.00011516,2]
[404306360,1770051727051,5000.01,0.00011516,2]
[404306361,1770051727075,5000.01,0.00011516,2]
[404306362,1770051727099,5000.01,0.00011516,2]
[404306363,1770051727123,5000.01,0.00011516,2]
[404306364,1770051727154,1983903.5,0.00011516,2]
[404306365,1770051782396,150.0,0.00011515,2]
[404306366,1770051782617,300.0,0.00011515,2]
[404306367,1770051800421,4550.01,0.00011416,2]
[404306368,1770051800445,5000.01,0.00011416,2]
[404306369,1770051800467,5000.01,0.00011416,2]
[404306370,1770051800488,5000.01,0.00011416,2]
[404306371,1770051800513,5000.01,0.00011416,2]
[404306372,1770051800540,2297.71221999,0.00011416,2]
[404306379,1770051842130,300.0,0.00011515,2]
[404306380,1770051869505,500.0,0.00011515,2]
[404306381,1770051869551,203.08130799,0.00011515,2]
[404306382,1770051869621,500.0,0.00011515,2]
[404306383,1770051869728,500.0,0.00011515,2]
[404306384,1770051870031,293.14414859,0.00011515,2]
[404306385,1770051872383,406.07232343,0.00011515,2]
[404306386,1770051872406,93.92767657,0.00011515,2]
[404306387,1770051872440,155.95348889,0.00011515,2]
[404306388,1770051872484,500.0,0.00011515,2]
[404306389,1770051872530,500.0,0.00011515,2]
[404306390,1770051872575,500.0,0.00011515,2]
[404306391,1770051872617,500.0,0.00011515,2]
[404306392,1770051872661,500.0,0.00011515,2]
[404306393,1770051872700,500.0,0.00011515,2]
[404306394,1770051872771,500.0,0.00011515,2]
[404306395,1770051872813,500.0,0.00011515,2]
[404306396,1770051872863,500.0,0.00011515,2]
[404306397,1770051872904,250.12883454,0.00011515,2]
[404306398,1770051872927,249.87116546,0.00011515,2]
[404306399,1770051872969,500.0,0.00011515,2]
[404306400,1770051873004,500.0,0.00011515,2]
[404306401,1770051873043,500.0,0.00011515,2]
[404306402,1770051873080,500.0,0.00011515,2]
[404306403,1770051873123,500.0,0.00011515,2]
[404306404,1770051873165,500.0,0.00011515,2]
[404306405,1770051873208,500.0,0.00011515,2]
[404306406,1770051873253,500.0,0.00011515,2]
[404306407,1770051873304,500.0,0.00011515,2]
[404306408,1770051873354,250.13883454,0.00011515,2]
[404306409,1770051873378,249.86116546,0.00011515,2]
[404306410,1770051873418,500.0,0.00011515,2]
[404306411,1770051873457,500.0,0.00011515,2]
[404306412,1770051873499,500.0,0.00011515,2]
[404306413,1770051873548,500.0,0.00011515,2]
[404306414,1770051873592,500.0,0.00011515,2]
[404306415,1770051873681,500.0,0.00011515,2]
[404306416,1770051873746,500.0,0.00011515,2]
[404306417,1770051873796,500.0,0.00011515,2]
[404306418,1770051873835,500.0,0.00011515,2]
[404306419,1770051873883,250.14883454,0.00011515,2]
[404306420,1770051873907,249.85116546,0.00011515,2]
[404306421,1770051873954,420.17174732,0.00011515,2]
[404306422,1770051874031,500.0,0.00011515,2]
[404306423,1770051874076,500.0,0.00011515,2]
[404306424,1770051874123,500.0,0.00011515,2]
[404306425,1770051874164,500.0,0.00011515,2]
[404306426,1770051874208,500.0,0.00011515,2]
[404306431,1770051885341,-406.67187175,0.00017,13]
[404306432,1770051901639,1200.0,0.00011515,2]
[404306433,1770051901800,-150.0,0.0002,20]
[404306434,1770051923074,500.0,0.00011515,2]
[404306435,1770051924002,129.98708722,0.00011416,2]
[404306436,1770051924025,1594.28586272,0.00011416,2]
[404306437,1770051924275,2500.0,0.00011416,2]
[404306438,1770051943795,905.72413728,0.00011416,2]
[404306439,1770051943816,603.01469397,0.00011416,2]
[404306441,1770051961987,300.0,0.00011515,2]
[404306442,1770051962237,150.0,0.00011515,2]
[404306443,1770051979627,500.0,0.00011515,2]
[404306444,1770051979682,500.0,0.00011515,2]
[404306445,1770051980036,500.0,0.00011515,2]
[404306446,1770051980079,500.0,0.00011515,2]
[404306447,1770051980123,500.0,0.00011515,2]
[404306448,1770051980163,500.0,0.00011515,2]
[404306449,1770051980205,150.00000001,0.00011515,2]
[404306450,1770052013999,500.0,0.00011515,2]
[404306451,1770052025082,200.0,0.00011516,2]
[404306452,1770052030544,96.99530602,0.00011516,2]
[404306453,1770052030567,54.00469398,0.00011516,2]
[404306454,1770052031193,151.0,0.00011516,2]
[404306455,1770052031806,151.0,0.00011516,2]
[404306456,1770052032451,151.0,0.00011516,2]
[404306457,1770052033056,151.0,0.00011516,2]
[404306458,1770052034107,151.0,0.00011516,2]
[404306459,1770052034240,500.0,0.00011516,2]
[404306460,1770052034561,151.0,0.00011516,2]
[404306461,1770052034747,151.0,0.00011516,2]
[404306462,1770052035128,151.0,0.00011516,2]
[404306463,1770052035191,151.0,0.00011516,2]